{"text_format":"3","workbook":"xlsx","n_sheets":1,"sheets":["Inköpslista"],"not_rendered":{"images":1,"external_links":1,"defined_names":3},"read":"whole","date_system":"1900"}

{"sheet":"Inköpslista","index":0,"n_rows":31,"n_cols":8,"rows_kept":31,"merged":[[1,1,1,2]]}
[null,"Inköpslista"]
[null,"DATUM"]
[null,"Klart?","Artikel","Kategori","Antal","Pris","Utökat pris","Varumärken/kommentarer"]
[null,null,"Apelsiner","Frukt och grönsaker",null,null,{"$f":"IFERROR(SUM(Inköpslista[Antal]*Inköpslista[Pris]), \"\")","v":{"v":0,"d":"0.00 kr"}}]
[null,null,"Äpplen","Frukt och grönsaker",null,null,{"$f":"IFERROR(SUM(Inköpslista[Antal]*Inköpslista[Pris]), \"\")","v":{"v":0,"d":"0.00 kr"}}]
[null,null,"Bananer","Frukt och grönsaker",null,null,{"$f":"IFERROR(SUM(Inköpslista[Antal]*Inköpslista[Pris]), \"\")","v":{"v":0,"d":"0.00 kr"}}]
[null,null,"Sallat","Frukt och grönsaker",null,null,{"$f":"IFERROR(SUM(Inköpslista[Antal]*Inköpslista[Pris]), \"\")","v":{"v":0,"d":"0.00 kr"}}]
[null,null,"Tomater","Frukt och grönsaker",null,null,{"$f":"IFERROR(SUM(Inköpslista[Antal]*Inköpslista[Pris]), \"\")","v":{"v":0,"d":"0.00 kr"}},"  "]
[null,null,"Mjölk ","Mejeriprodukter",null,null,{"$f":"IFERROR(SUM(Inköpslista[Antal]*Inköpslista[Pris]), \"\")","v":{"v":0,"d":"0.00 kr"}}]
[null,null,"Ost","Mejeriprodukter",null,null,{"$f":"IFERROR(SUM(Inköpslista[Antal]*Inköpslista[Pris]), \"\")","v":{"v":0,"d":"0.00 kr"}}]
[null,null,"Ägg","Mejeriprodukter",null,null,{"$f":"IFERROR(SUM(Inköpslista[Antal]*Inköpslista[Pris]), \"\")","v":{"v":0,"d":"0.00 kr"}}]
[null,null,"Kvarg","Mejeriprodukter",null,null,{"$f":"IFERROR(SUM(Inköpslista[Antal]*Inköpslista[Pris]), \"\")","v":{"v":0,"d":"0.00 kr"}}]
[null,null,"Nötkött","Kött",null,null,{"$f":"IFERROR(SUM(Inköpslista[Antal]*Inköpslista[Pris]), \"\")","v":{"v":0,"d":"0.00 kr"}}]
[null,null,"Kyckling","Kött",null,null,{"$f":"IFERROR(SUM(Inköpslista[Antal]*Inköpslista[Pris]), \"\")","v":{"v":0,"d":"0.00 kr"}}]
[null,null,"Skinka","Kött",null,null,{"$f":"IFERROR(SUM(Inköpslista[Antal]*Inköpslista[Pris]), \"\")","v":{"v":0,"d":"0.00 kr"}}]
[null,null,"Juice","Dryck",null,null,{"$f":"IFERROR(SUM(Inköpslista[Antal]*Inköpslista[Pris]), \"\")","v":{"v":0,"d":"0.00 kr"}}]
[null,null,"Kaffe","Dryck",null,null,{"$f":"IFERROR(SUM(Inköpslista[Antal]*Inköpslista[Pris]), \"\")","v":{"v":0,"d":"0.00 kr"}}]
[null,null,"Te","Dryck",null,null,{"$f":"IFERROR(SUM(Inköpslista[Antal]*Inköpslista[Pris]), \"\")","v":{"v":0,"d":"0.00 kr"}}]
[null,null,"Vatten","Dryck",null,null,{"$f":"IFERROR(SUM(Inköpslista[Antal]*Inköpslista[Pris]), \"\")","v":{"v":0,"d":"0.00 kr"}}]
[null,null,"Nudlar","Pasta",null,null,{"$f":"IFERROR(SUM(Inköpslista[Antal]*Inköpslista[Pris]), \"\")","v":{"v":0,"d":"0.00 kr"}}]
[null,null,"Ris","Pasta",null,null,{"$f":"IFERROR(SUM(Inköpslista[Antal]*Inköpslista[Pris]), \"\")","v":{"v":0,"d":"0.00 kr"}}]
[null,null,"I burk","Soppa",null,null,{"$f":"IFERROR(SUM(Inköpslista[Antal]*Inköpslista[Pris]), \"\")","v":{"v":0,"d":"0.00 kr"}}]
[null,null,"Torrblandning","Soppa",null,null,{"$f":"IFERROR(SUM(Inköpslista[Antal]*Inköpslista[Pris]), \"\")","v":{"v":0,"d":"0.00 kr"}}]
[null,null,"Bröd","Bakverk",null,null,{"$f":"IFERROR(SUM(Inköpslista[Antal]*Inköpslista[Pris]), \"\")","v":{"v":0,"d":"0.00 kr"}}]
[null,null,"Chips","Tilltugg",null,null,{"$f":"IFERROR(SUM(Inköpslista[Antal]*Inköpslista[Pris]), \"\")","v":{"v":0,"d":"0.00 kr"}}]
[null,null,"Salta pinnar","Tilltugg",null,null,{"$f":"IFERROR(SUM(Inköpslista[Antal]*Inköpslista[Pris]), \"\")","v":{"v":0,"d":"0.00 kr"}}]
[null,null,"Glass","Tilltugg",null,null,{"$f":"IFERROR(SUM(Inköpslista[Antal]*Inköpslista[Pris]), \"\")","v":{"v":0,"d":"0.00 kr"}}]
[null,null,"Kakor","Tilltugg",null,null,{"$f":"IFERROR(SUM(Inköpslista[Antal]*Inköpslista[Pris]), \"\")","v":{"v":0,"d":"0.00 kr"}}]
[null,null,"Papperstallrikar","Material",null,null,{"$f":"IFERROR(SUM(Inköpslista[Antal]*Inköpslista[Pris]), \"\")","v":{"v":0,"d":"0.00 kr"}}]
[null,null,"Servetter","Material",null,null,{"$f":"IFERROR(SUM(Inköpslista[Antal]*Inköpslista[Pris]), \"\")","v":{"v":0,"d":"0.00 kr"}}]
[{"$nulls":6},{"$f":"SUBTOTAL(109,Inköpslista[Utökat pris])","v":{"v":0,"d":"0.00 kr"}}]